bitfinex/quotes_BTCUSD_20250522
["timestamp","ask_amount","ask_price","bid_price","bid_amount"]
[1747934692877,0.00115107,111820.0,111810.0,4.11083469]
[1747934693935,0.01009329,111820.0,111810.0,4.11083469]
[1747934694135,0.00115107,111820.0,111810.0,4.11083469]
[1747934694759,0.01903575,111820.0,111810.0,4.11083469]
[1747934694987,0.01009329,111820.0,111810.0,4.11083469]
[1747934695191,0.01903567,111820.0,111810.0,4.11083469]
[1747934696098,0.01009329,111820.0,111810.0,4.11083469]
[1747934696246,0.01903575,111820.0,111810.0,4.11083469]
[1747934696441,0.20683733,111820.0,111810.0,3.27624956]
[1747934696645,0.01009329,111820.0,111810.0,4.11083469]
[1747934696852,0.01903567,111820.0,111810.0,4.11083469]
[1747934697078,0.01009329,111820.0,111810.0,4.11083469]
[1747934697293,0.01903575,111820.0,111810.0,4.11083469]
[1747934697614,0.00115107,111820.0,111810.0,4.11083469]
[1747934697820,0.00115107,111820.0,111810.0,4.18047554]
[1747934698028,0.00115107,111820.0,111810.0,4.54865831]
[1747934698244,0.00115107,111820.0,111810.0,4.87713045]
[1747934699124,0.00115107,111820.0,111810.0,4.86709045]
[1747934699262,0.00015107,111820.0,111810.0,4.4969696]
[1747934699465,0.00015107,111820.0,111810.0,4.13912669]
[1747934699670,0.00015107,111820.0,111810.0,4.11231469]
[1747934699880,0.00015107,111820.0,111810.0,4.11031469]
[1747934700103,0.21478027,111820.0,111810.0,3.48595485]
[1747934700369,0.19689559,111820.0,111810.0,2.94324956]
[1747934700585,0.19689559,111820.0,111810.0,3.77731525]
[1747934700796,0.19689559,111820.0,111810.0,3.78625859]
[1747934700976,0.19689559,111820.0,111810.0,4.12625859]
[1747934701119,0.19689559,111820.0,111810.0,4.12225859]
[1747934701337,0.19689559,111820.0,111810.0,3.11812443]
[1747934701544,0.19689559,111820.0,111810.0,3.76437151]
[1747934701742,0.00015107,111820.0,111810.0,3.15389811]
[1747934701940,0.00015107,111820.0,111810.0,4.19555774]
[1747934702143,0.00015107,111820.0,111810.0,4.22159774]
[1747934702351,0.00015107,111820.0,111810.0,4.19023896]
[1747934702570,0.00015107,111820.0,111810.0,4.19323896]
[1747934702978,0.00015107,111820.0,111810.0,4.19023896]
[1747934703378,0.00015107,111820.0,111810.0,4.19123896]
[1747934705753,0.00015107,111820.0,111810.0,4.54896896]
[1747934705958,0.00015107,111820.0,111810.0,4.55066896]
[1747934706173,0.03068195,111850.0,111840.0,0.19670933]
[1747934706374,0.20949269,111850.0,111840.0,3.37535897]
[1747934706579,0.06742233,111850.0,111840.0,3.38429999]
[1747934706782,0.23343212,111850.0,111840.0,3.36641779]
[1747934707002,0.0630399,111850.0,111840.0,2.65749317]
[1747934707143,0.07197996,111850.0,111840.0,3.28581317]
[1747934707356,0.0537,111870.0,111860.0,0.5455988]
[1747934707561,3.4349792,111880.0,111870.0,0.17877893]
[1747934707775,3.67592616,111880.0,111870.0,2.460784]
[1747934707987,3.66698842,111880.0,111870.0,3.089064]
[1747934708192,3.75653398,111880.0,111870.0,0.62828]
[1747934708901,0.18771771,111870.0,111860.0,0.7258]
[1747934709146,0.24151771,111870.0,111860.0,3.814864]
[1747934709347,0.24151771,111870.0,111860.0,3.474864]
[1747934709551,0.24251771,111870.0,111860.0,3.474864]
[1747934709755,0.24984908,111870.0,111860.0,3.474864]
[1747934709981,0.25084908,111870.0,111860.0,1.31298]
[1747934710383,0.34039464,111870.0,111860.0,1.12258]
[1747934710589,0.34039464,111870.0,111860.0,0.4943]
[1747934710828,0.34039464,111870.0,111860.0,1.01404]
[1747934711170,0.34039464,111870.0,111860.0,3.45492448]
[1747934711171,0.07206983,111870.0,111860.0,3.45492448]
[1747934711381,0.07206983,111870.0,111860.0,3.814824]
[1747934711382,0.2620681,111870.0,111860.0,3.814824]
[1747934711581,0.25978762,111870.0,111860.0,2.22774]
[1747934712010,0.34933318,111870.0,111860.0,0.3858]
[1747934712214,0.35033318,111870.0,111860.0,0.3858]
[1747934712397,0.25022692,111830.0,111820.0,0.18780182]
[1747934712608,0.25916842,111830.0,111820.0,3.66262582]
[1747934712806,0.25916842,111830.0,111820.0,4.01156868]
[1747934713010,0.06244142,111830.0,111820.0,4.01156868]
[1747934713209,0.04378308,111830.0,111820.0,4.02051138]
[1747934713410,0.0527249,111830.0,111820.0,4.029454]
[1747934713646,0.04378308,111830.0,111820.0,4.03848927]
[1747934713876,0.04378308,111830.0,111820.0,4.04743181]
[1747934714081,0.05272482,111830.0,111820.0,4.03848887]
[1747934714491,0.05272482,111830.0,111820.0,4.02954633]
[1747934714704,0.04378308,111830.0,111820.0,3.41919125]
[1747934714924,0.0527249,111830.0,111820.0,4.0314536]
[1747934715130,0.05272498,111830.0,111820.0,4.01356844]
[1747934715346,0.08082498,111830.0,111820.0,3.99568288]
[1747934715559,0.2530074,111830.0,111820.0,3.188584]
[1747934715786,0.0514,111850.0,111830.0,0.3489415]
[1747934716003,0.0514,111850.0,111840.0,3.25647223]
[1747934716004,0.07822026,111850.0,111840.0,3.25647223]
[1747934716228,0.08716064,111850.0,111840.0,2.99749349]
[1747934716471,0.27719256,111850.0,111840.0,3.60785089]
[1747934716678,0.24809182,111850.0,111840.0,3.429024]
[1747934717796,0.06928052,111850.0,111840.0,3.60785089]
[1747934718001,0.0279,111850.0,111840.0,3.72421951]
[1747934718216,0.002,111850.0,111840.0,3.72421951]
[1747934719362,0.001,111870.0,111860.0,0.20561318]
[1747934719581,0.001,111870.0,111860.0,3.02386274]
[1747934719805,0.00115204,111870.0,111860.0,3.02386274]
[1747934720026,0.20674659,111870.0,111860.0,2.460784]
[1747934720252,0.25000829,111870.0,111860.0,3.429024]
[1747934720700,0.25100829,111870.0,111860.0,3.429024]
[1747934720942,0.25100829,111870.0,111860.0,2.460784]
[1747934720943,0.34055385,111870.0,111860.0,2.460784]
[1747934721180,0.24829142,111850.0,111840.0,0.003]
[1747934721463,0.19829142,111850.0,111840.0,2.460784]
[1747934721721,0.21617194,111850.0,111840.0,0.62824]
[1747934721951,0.21617194,111850.0,111840.0,3.089024]
[1747934722654,0.21617194,111850.0,111840.0,3.092024]
[1747934722883,0.21617194,111850.0,111840.0,3.095024]
[1747934723064,0.21617194,111850.0,111840.0,3.092024]
[1747934723275,0.21617194,111850.0,111840.0,3.093024]
[1747934723621,0.21617194,111850.0,111840.0,3.090024]
[1747934723838,0.24077162,111850.0,111840.0,3.62673317]
[1747934724067,0.06196064,111850.0,111840.0,3.63767411]
[1747934724292,0.05302018,111850.0,111840.0,3.62873317]
[1747934724505,0.06196072,111850.0,111840.0,3.63767411]
[1747934724729,0.05302018,111850.0,111840.0,3.63767411]
[1747934724949,0.249712,111850.0,111840.0,3.61979215]
[1747934725195,0.24077146,111850.0,111840.0,3.61085089]
[1747934725446,0.25683212,111850.0,111840.0,3.61979223]
[1747934725654,0.25683212,111850.0,111840.0,3.61085089]
[1747934726057,0.25683212,111850.0,111840.0,3.61979223]
[1747934726392,0.23895144,111850.0,111840.0,2.803784]
[1747934726611,0.328497,111850.0,111840.0,2.5144]
[1747934726822,0.328497,111850.0,111840.0,2.5038]
[1747934727018,0.328497,111850.0,111840.0,2.4038]
[1747934727459,0.328497,111850.0,111840.0,2.2279]
[1747934728315,0.328497,111850.0,111840.0,2.1799]
[1747934728523,0.328497,111850.0,111840.0,2.17794]
[1747934728748,0.328497,111850.0,111840.0,1.99214]
[1747934728988,0.328497,111850.0,111840.0,1.01504]
[1747934729252,0.017885,111820.0,111810.0,0.18389845]
[1747934729531,0.01788484,111820.0,111810.0,3.45287461]
[1747934729734,0.22222692,111830.0,111820.0,0.17885888]
[1747934729936,0.22222692,111830.0,111820.0,2.63964288]
[1747934730379,0.08636768,111830.0,111820.0,3.30230574]
[1747934730588,0.26521056,111830.0,111820.0,3.29336288]
[1747934730793,0.05232554,111830.0,111820.0,3.31124852]
[1747934730993,0.24940901,111840.0,111830.0,0.18778502]
[1747934731199,0.07952338,111840.0,111830.0,2.64856902]
[1747934731410,0.25835027,111840.0,111830.0,3.26830688]
[1747934731832,0.24046815,111840.0,111830.0,3.26830688]
[1747934732037,0.24046815,111840.0,111830.0,3.089464]
[1747934732441,0.24046815,111840.0,111830.0,3.26830688]
[1747934732613,0.24046815,111840.0,111830.0,3.089464]
[1747934733192,0.24046815,111840.0,111830.0,3.089504]
[1747934733394,0.24146815,111840.0,111830.0,3.089504]
[1747934734189,0.24146815,111840.0,111830.0,2.460824]
[1747934734448,0.38199617,111840.0,111830.0,4e-05]
[1747934734653,0.33101371,111840.0,111830.0,0.62872]
[1747934735480,0.34101371,111840.0,111830.0,4e-05]
[1747934735705,0.24028486,111830.0,111820.0,0.43584]
[1747934735918,0.4265246,111830.0,111820.0,1.06456]
[1747934736133,0.4265246,111830.0,111820.0,0.43584]
[1747934736343,0.26484251,111820.0,111810.0,4e-05]
[1747934736593,0.26484251,111820.0,111810.0,0.3608]
[1747934736594,0.35438807,111820.0,111810.0,0.3608]
[1747934736818,0.33984722,111820.0,111810.0,0.36088]
[1747934737039,0.01789012,111790.0,111780.0,4e-05]
[1747934737256,0.33834255,111790.0,111780.0,0.36103107]
[1747934737696,0.33834255,111790.0,111780.0,0.62899107]
[1747934738335,0.33834255,111790.0,111780.0,0.00019107]
[1747934738750,0.33834255,111790.0,111780.0,0.62899107]
[1747934739572,0.40660674,111790.0,111780.0,0.62899107]
[1747934739783,0.40660674,111790.0,111780.0,0.26815107]
[1747934739990,0.3528834,111790.0,111780.0,0.26815107]
[1747934740205,0.27577306,111770.0,111760.0,0.00074598]
[1747934740428,0.35531862,111770.0,111760.0,0.26920976]
[1747934740683,0.4348256,111770.0,111760.0,0.26920976]
[1747934740891,0.36531862,111770.0,111760.0,0.26928976]
[1747934741096,0.37531862,111770.0,111760.0,0.26928976]
[1747934741715,0.38031862,111770.0,111760.0,0.26928976]
[1747934741925,0.39396833,111770.0,111760.0,0.26928976]
[1747934742067,0.39396833,111770.0,111760.0,0.31928976]
[1747934742267,0.39396833,111770.0,111760.0,0.05124976]
[1747934742476,0.35577777,111770.0,111760.0,0.31928976]
[1747934742676,0.34577777,111770.0,111760.0,0.68016976]
[1747934744505,0.34077777,111770.0,111760.0,0.68028976]
[1747934744745,0.34477777,111770.0,111760.0,0.68028976]
[1747934745609,0.31717777,111770.0,111760.0,1.06628976]
[1747934746266,0.29037777,111770.0,111760.0,1.06628976]
[1747934746480,0.20083221,111770.0,111760.0,1.06628976]
[1747934747112,0.19583221,111770.0,111760.0,3.52707376]
[1747934747730,0.19183221,111770.0,111760.0,3.52707376]
[1747934747941,0.19283221,111770.0,111760.0,3.52707376]
[1747934748179,0.33467777,111770.0,111760.0,0.43724976]
[1747934748428,0.33467777,111770.0,111760.0,0.05124976]
[1747934748857,0.33467777,111770.0,111760.0,0.68036976]
[1747934749064,0.34467777,111770.0,111760.0,0.68036976]
[1747934749275,0.33467777,111770.0,111760.0,0.68036976]
[1747934751171,0.35921862,111770.0,111760.0,0.68036976]
[1747934751603,0.34921862,111770.0,111760.0,0.68036976]
[1747934753309,0.77137195,111770.0,111760.0,0.04428781]
[1747934753551,0.77137195,111770.0,111730.0,0.36108]
[1747934753552,0.01789812,111740.0,111730.0,0.36108]
[1747934753754,0.35515194,111740.0,111730.0,0.62939119]
[1747934753966,0.36287146,111740.0,111730.0,0.62939119]
[1747934754169,0.37287146,111740.0,111730.0,0.62939119]
[1747934754593,0.4280557,111740.0,111730.0,0.62939119]
[1747934754820,0.43713982,111740.0,111730.0,0.62939119]
[1747934755029,0.42713982,111740.0,111730.0,0.62939119]
[1747934755246,0.4190557,111740.0,111730.0,0.62939119]
[1747934755461,0.4180557,111740.0,111730.0,0.00019119]
[1747934755685,0.58549378,111730.0,111720.0,4e-05]
[1747934755927,0.34503934,111730.0,111720.0,0.26824]
[1747934756168,0.34503934,111730.0,111720.0,0.62932]
[1747934756589,0.34503934,111730.0,111720.0,0.36112]
[1747934756805,0.33603934,111730.0,111720.0,0.36112]
[1747934757025,0.40984197,111730.0,111720.0,0.36112]
[1747934757254,0.34603934,111730.0,111720.0,0.62932]
[1747934757484,0.34603934,111730.0,111720.0,0.26824]
[1747934757700,0.36934535,111730.0,111720.0,0.26824]
[1747934757917,0.37334535,111730.0,111720.0,0.26824]
[1747934758507,0.35003934,111730.0,111720.0,0.26824]
[1747934758705,0.43794197,111730.0,111720.0,4e-05]
[1747934758939,0.35003934,111730.0,111720.0,0.62944]
[1747934759109,0.36003934,111730.0,111720.0,0.62944]
[1747934759314,0.36003934,111730.0,111720.0,4e-05]
[1747934759532,0.36003934,111730.0,111720.0,0.63108]
[1747934760317,0.36003934,111730.0,111720.0,4e-05]
[1747934760473,0.44956085,111730.0,111720.0,0.63108]
[1747934760674,0.36003934,111730.0,111720.0,0.63108]
[1747934760879,0.36003934,111730.0,111720.0,4e-05]
[1747934761081,0.35003934,111730.0,111720.0,0.63112]
[1747934761498,0.35003934,111730.0,111720.0,4e-05]
[1747934761697,0.35003934,111730.0,111720.0,0.63112]
[1747934762078,0.32549849,111730.0,111720.0,0.63112]
[1747934762310,0.28249849,111730.0,111720.0,0.63112]
[1747934762658,0.35083934,111730.0,111720.0,0.63112]
[1747934763072,0.33629849,111730.0,111720.0,0.63112]
[1747934763277,0.28249849,111730.0,111720.0,0.63112]
[1747934763474,0.28249849,111730.0,111720.0,1.01736]
[1747934763683,0.28249849,111730.0,111720.0,0.38628]
[1747934763909,0.28249849,111730.0,111720.0,1.01736]
[1747934765120,0.28249849,111730.0,111720.0,1.41736]
[1747934765121,0.19295293,111730.0,111720.0,1.41736]
[1747934765322,0.19295293,111730.0,111720.0,1.01736]
[1747934765732,0.20588902,111710.0,111700.0,0.27019966]
[1747934765931,0.20588902,111710.0,111700.0,3.17455251]
[1747934766351,0.20588902,111710.0,111700.0,3.18350466]
[1747934766535,0.02685402,111710.0,111700.0,3.19245673]
[1747934766670,0.21484077,111710.0,111700.0,3.45174426]
[1747934766871,0.20588967,111710.0,111700.0,3.236885]
[1747934767132,0.19693833,111710.0,111700.0,2.51625944]
[1747934767416,0.00895134,111710.0,111700.0,3.34429532]
[1747934767629,0.02685402,111710.0,111700.0,3.4517451]
[1747934768060,0.03580568,111710.0,111700.0,3.4517451]
[1747934768243,0.03580568,111710.0,111700.0,3.4547451]
[1747934768559,0.03580568,111710.0,111700.0,3.4567451]
[1747934768770,0.22379243,111710.0,111700.0,3.45674526]
[1747934768972,0.22379243,111710.0,111700.0,3.46569725]
[1747934769604,0.20588902,111710.0,111700.0,3.45674526]
[1747934770232,0.21484077,111710.0,111700.0,3.25108225]
[1747934770428,0.20587123,111720.0,111710.0,0.18797218]
[1747934770638,0.20587123,111720.0,111710.0,2.48948118]
[1747934770872,0.20587123,111720.0,111710.0,2.301509]
[1747934770873,0.19692061,111720.0,111710.0,2.301509]
[1747934771723,0.19692061,111720.0,111710.0,2.480544]
[1747934772293,0.19692061,111720.0,111710.0,3.111584]
[1747934772294,0.18796983,111720.0,111710.0,3.111584]
[1747934772539,0.18796983,111720.0,111710.0,3.12053575]
[1747934772969,0.18796983,111720.0,111710.0,3.12948733]
[1747934773384,0.17900295,111730.0,111720.0,0.17901897]
[1747934773592,0.18796975,111720.0,111710.0,0.96082608]
[1747934773799,0.00895078,111720.0,111710.0,3.26233508]
[1747934774196,0.19692061,111720.0,111710.0,2.301509]
[1747934774454,0.19692061,111720.0,111710.0,2.687749]
[1747934774668,0.33976617,111720.0,111710.0,1.01728]
[1747934775355,0.33976617,111720.0,111710.0,0.38624]
[1747934775561,0.33976617,111720.0,111710.0,1.01728]
[1747934777259,0.33976617,111720.0,111710.0,0.38624]
[1747934777492,0.33976617,111720.0,111710.0,1.01728]
[1747934778745,0.33976617,111720.0,111710.0,0.74904]
[1747934778990,0.33976617,111720.0,111710.0,1.01728]
[1747934779599,0.33976617,111720.0,111710.0,0.38624]
[1747934779806,0.33976617,111720.0,111710.0,1.01732]
[1747934780485,0.33976617,111720.0,111710.0,0.38624]
[1747934780737,0.33976617,111720.0,111710.0,1.01732]
[1747934781116,0.36477949,111720.0,111710.0,1.01732]
[1747934781881,0.36477949,111720.0,111710.0,0.74908]
[1747934782081,0.21338658,111710.0,111700.0,0.00013544]
[1747934782283,0.32973214,111710.0,111700.0,1.01749544]
[1747934782910,0.32973214,111710.0,111700.0,1.01753544]
[1747934783341,0.40565093,111710.0,111700.0,0.38641544]
[1747934783553,0.40565093,111710.0,111700.0,1.01753544]
[1747934783753,0.35477582,111710.0,111700.0,1.01753544]
[1747934784167,0.32973214,111710.0,111700.0,1.02053544]
[1747934784366,0.27973214,111710.0,111700.0,1.02053544]
[1747934784582,0.28868372,111710.0,111700.0,1.02053544]
[1747934785025,0.28868372,111710.0,111700.0,0.75225544]
[1747934785421,0.28868372,111710.0,111700.0,1.02053544]
[1747934786171,0.28868372,111710.0,111700.0,1.02057544]
[1747934786692,0.28868372,111710.0,111700.0,0.38941544]
[1747934786906,0.28868372,111710.0,111700.0,1.02057544]
[1747934789287,0.28868372,111710.0,111700.0,0.75229544]
[1747934789493,0.28868372,111710.0,111700.0,1.02057544]
[1747934790531,0.32228425,111710.0,111700.0,0.38941544]
[1747934790676,0.32228425,111710.0,111700.0,1.01813544]
[1747934791044,0.28868372,111710.0,111700.0,1.01817544]
[1747934791247,0.28868372,111710.0,111700.0,0.74989544]
[1747934791689,0.28868372,111710.0,111700.0,1.01817544]
[1747934792257,0.31322457,111710.0,111700.0,1.01817544]
[1747934792995,0.31322457,111710.0,111700.0,1.01717544]
[1747934793188,0.01790934,111670.0,111660.0,0.01399794]
[1747934793380,0.19704376,111650.0,111640.0,0.002]
[1747934793581,0.19704376,111650.0,111640.0,0.63076]
[1747934793820,0.0179107,111660.0,111650.0,0.0273]
[1747934793981,0.1880706,111660.0,111650.0,2.695109]
[1747934794249,0.2059817,111660.0,111650.0,2.96228577]
[1747934794445,0.2059817,111660.0,111650.0,2.78365456]
[1747934794446,0.20198138,111660.0,111650.0,2.78365456]
[1747934794779,0.18820661,111660.0,111650.0,2.78365456]
[1747934794981,0.18820661,111660.0,111650.0,3.322909]
[1747934795188,0.18820661,111660.0,111650.0,2.696109]
[1747934795368,0.18820661,111660.0,111650.0,2.694109]
[1747934795570,0.18820661,111660.0,111650.0,1.74644]
[1747934795769,0.18820661,111660.0,111650.0,1.04596]
[1747934795924,0.18820661,111660.0,111650.0,1.67476]
[1747934796133,0.18820661,111660.0,111650.0,1.88439121]
[1747934796510,0.18820661,111660.0,111650.0,2.25169121]
[1747934796715,0.18820661,111660.0,111650.0,2.07851656]
[1747934797141,0.18820661,111660.0,111650.0,2.26064777]
[1747934797341,0.18820661,111660.0,111650.0,2.08155656]
[1747934797527,0.18820661,111660.0,111650.0,2.26068777]
[1747934798234,0.18820661,111660.0,111650.0,1.63184777]
[1747934798451,0.18820661,111660.0,111650.0,2.08155656]
[1747934798714,0.18820661,111660.0,111650.0,2.0726]
[1747934799181,0.18820661,111660.0,111650.0,2.0453]
[1747934799365,0.18820661,111660.0,111650.0,2.05425656]
[1747934799797,0.18820661,111660.0,111650.0,1.42541656]
[1747934800001,0.00013585,111660.0,111650.0,2.39014272]
[1747934800224,0.00013585,111660.0,111650.0,2.39011296]
[1747934800442,0.00909088,111660.0,111650.0,2.39011296]
[1747934801085,0.00909088,111660.0,111650.0,2.39015296]
[1747934801556,0.01804607,111660.0,111650.0,2.39015296]
[1747934801795,0.00909096,111660.0,111650.0,2.39015296]
[1747934801999,0.00013585,111660.0,111650.0,2.39015296]
[1747934802213,0.00909088,111660.0,111650.0,2.38715296]
[1747934802429,0.00013585,111660.0,111650.0,2.39015296]
[1747934802711,0.2148161,111670.0,111660.0,0.58982627]
[1747934802927,0.2148161,111670.0,111660.0,2.97200757]
[1747934802928,0.20596318,111670.0,111660.0,2.97200757]
[1747934803136,0.20596318,111670.0,111660.0,2.98991851]
[1747934803316,0.21491813,111670.0,111660.0,2.99887386]
[1747934803719,0.20596366,111670.0,111660.0,3.77377681]
[1747934803921,0.19700895,111670.0,111660.0,3.96184773]
[1747934804133,0.19700895,111670.0,111660.0,2.89195125]
[1747934804364,0.19700895,111670.0,111660.0,3.52079125]
[1747934804539,0.19700895,111670.0,111660.0,3.70886217]
[1747934804734,0.19700895,111670.0,111660.0,3.08002217]
[1747934804970,0.19700895,111670.0,111660.0,3.70886217]
[1747934805217,0.19700895,111670.0,111660.0,3.71781768]
[1747934805449,0.19700895,111670.0,111660.0,3.70886217]
[1747934805687,0.18805408,111670.0,111660.0,3.263427]
[1747934805915,0.18805408,111670.0,111660.0,3.71086217]
[1747934806145,0.18805408,111670.0,111660.0,3.69586217]
[1747934807476,0.18805408,111670.0,111660.0,3.50779125]
[1747934808203,0.18805408,111670.0,111660.0,3.68690642]
[1747934808417,0.18805408,111670.0,111660.0,3.72272878]
[1747934808638,0.19700879,111670.0,111660.0,3.74081343]
[1747934808878,0.19700879,111670.0,111660.0,3.74976894]
[1747934809811,0.19700879,111670.0,111660.0,3.72276894]
[1747934810085,0.01790854,111670.0,111660.0,3.73961223]
[1747934810334,0.03581772,111670.0,111660.0,3.76531223]
[1747934810735,0.00895383,111680.0,111670.0,0.20596326]
[1747934811013,0.25226405,111710.0,111700.0,0.54590771]
[1747934811014,0.001,111710.0,111700.0,0.54590771]
[1747934811221,0.001,111710.0,111700.0,3.56573327]
[1747934811477,0.001,111710.0,111700.0,3.59233327]
[1747934811720,0.001,111710.0,111700.0,3.56573327]
[1747934812169,0.00995102,111710.0,111700.0,3.56573327]
[1747934812592,0.001,111710.0,111700.0,3.56573327]
[1747934812827,0.001,111710.0,111700.0,3.59383327]
[1747934813106,0.001,111710.0,111700.0,3.63307412]
[1747934813319,0.03579584,111740.0,111730.0,0.1968888]
[1747934813535,0.21478325,111740.0,111730.0,1.2120488]
[1747934813766,0.0269993,111740.0,111730.0,3.5313882]
[1747934814202,0.03594864,111740.0,111730.0,3.5313882]
[1747934814414,0.0269993,111740.0,111730.0,3.5313882]
[1747934814628,0.00910126,111740.0,111730.0,3.5313882]
[1747934814851,0.00910086,111740.0,111730.0,3.96093376]
[1747934815067,0.01110102,111740.0,111730.0,3.96093376]
[1747934815510,0.00215224,111740.0,111730.0,3.96093376]
[1747934815728,0.01110086,111740.0,111730.0,3.98495376]
[1747934816185,0.00015224,111740.0,111730.0,3.98495376]
[1747934816403,0.00910086,111740.0,111730.0,3.98495376]
[1747934816620,0.01904964,111740.0,111730.0,3.98495376]
[1747934816851,0.01010086,111740.0,111730.0,3.98495376]
[1747934817787,0.01904964,111740.0,111730.0,3.98495376]
[1747934818005,0.00115224,111740.0,111730.0,4.01075376]
[1747934818234,0.01010102,111740.0,111730.0,3.96085376]
[1747934818451,0.00115224,111740.0,111730.0,3.96085376]
[1747934818684,0.01010086,111740.0,111730.0,3.96085376]
[1747934818916,0.01904964,111740.0,111730.0,3.96085376]
[1747934819607,0.01904956,111740.0,111730.0,3.96085376]
[1747934820179,0.22488379,111740.0,111730.0,3.33213392]
[1747934820390,0.19803745,111740.0,111730.0,3.11734556]
[1747934820600,0.25033745,111740.0,111730.0,1.91194]
[1747934821003,0.20698679,111740.0,111730.0,2.11779273]
[1747934821415,0.02799938,111740.0,111730.0,2.13569197]
[1747934821592,0.21593557,111740.0,111730.0,2.13569197]
[1747934821809,0.01010086,111740.0,111730.0,2.22523753]
[1747934822016,0.01904972,111740.0,111730.0,2.22523753]
[1747934822219,0.01904972,111740.0,111730.0,2.22527753]
[1747934822629,0.01010086,111740.0,111730.0,2.22527753]
[1747934822838,0.00015224,111740.0,111730.0,2.22527753]
[1747934823051,0.00910102,111740.0,111730.0,2.22627753]
[1747934823260,0.00015224,111740.0,111730.0,2.22627753]
[1747934824253,0.00015224,111740.0,111730.0,1.92219857]
[1747934824254,0.20598599,111740.0,111730.0,1.92219857]
[1747934824465,0.24633729,111740.0,111730.0,1.9129]
[1747934824687,0.24633729,111740.0,111730.0,2.10980299]
[1747934825480,0.24633729,111740.0,111730.0,1.2797]
[1747934825698,0.24633729,111740.0,111730.0,0.3874]
[1747934825909,0.33588285,111740.0,111730.0,1.0206]
[1747934826556,0.62421251,111740.0,111730.0,1.0206]
[1747934826968,0.63875336,111740.0,111730.0,0.7524]
[1747934827187,0.73827487,111740.0,111730.0,1.0206]
[1747934827417,0.24823792,111710.0,111700.0,0.001]
[1747934827628,0.33778348,111710.0,111700.0,0.366]
[1747934827838,0.33778348,111710.0,111700.0,0.001]
[1747934828011,0.33778348,111710.0,111700.0,0.00104]
[1747934828244,0.33778348,111710.0,111700.0,0.36604]
[1747934828437,0.33778348,111710.0,111700.0,0.63424]
[1747934829210,0.33778348,111710.0,111700.0,0.00104]
[1747934829485,0.36508545,111710.0,111700.0,0.00104]
[1747934829652,0.01790902,111670.0,111660.0,0.21494686]
[1747934829935,0.00895439,111670.0,111660.0,3.21413242]
[1747934830111,0.0179087,111670.0,111660.0,3.20517659]
[1747934830336,0.0179087,111670.0,111660.0,3.95645659]
[1747934830337,0.01790854,111670.0,111660.0,3.95645659]
[1747934830565,0.02686317,111670.0,111660.0,3.95645659]
[1747934830786,0.22387148,111670.0,111660.0,1.18086556]
[1747934830992,0.24870847,111670.0,111660.0,1.37466692]
[1747934831211,0.24870847,111670.0,111660.0,1.56273768]
[1747934831409,0.23975392,111670.0,111660.0,1.54482642]
[1747934831649,0.23975392,111670.0,111660.0,1.55378201]
[1747934831834,0.23975392,111670.0,111660.0,1.02571125]
[1747934832054,0.23975392,111670.0,111660.0,1.36271125]
[1747934832263,0.23975392,111670.0,111660.0,1.55973776]
[1747934832692,0.23975392,111670.0,111660.0,0.92345776]
[1747934832902,0.23975392,111670.0,111660.0,0.72843125]
[1747934833105,0.23975392,111670.0,111660.0,1.36175125]
[1747934833547,0.23975392,111670.0,111660.0,1.36375125]
[1747934833758,0.23975392,111670.0,111660.0,1.36379125]
[1747934834837,0.37118461,111670.0,111660.0,0.63755125]
[1747934835061,0.32929948,111670.0,111660.0,0.00419125]
[1747934835286,0.06065479,111670.0,111660.0,0.63755125]
[1747934835498,0.21491741,111670.0,111660.0,0.97755125]
[1747934835709,0.19700879,111670.0,111660.0,0.97555125]
[1747934835942,0.19700879,111670.0,111660.0,0.97355125]
[1747934836161,0.19900879,111670.0,111660.0,0.97355125]
[1747934836722,0.24850879,111670.0,111660.0,0.97355125]
[1747934837954,0.19900879,111670.0,111660.0,0.97355125]
[1747934838801,0.22330879,111670.0,111660.0,0.97355125]
[1747934839015,0.24950879,111670.0,111660.0,0.97367125]
[1747934840947,0.33905435,111670.0,111660.0,0.70535125]
[1747934841178,0.33905435,111670.0,111660.0,0.97367125]
[1747934841468,0.39808486,111670.0,111660.0,0.00019125]
[1747934841711,0.33905435,111670.0,111660.0,0.63367125]
[1747934842357,0.33905435,111670.0,111660.0,0.00019125]
[1747934842567,0.33905435,111670.0,111660.0,0.63371125]
[1747934844973,0.33905435,111670.0,111660.0,0.63375125]
[1747934845838,0.33905435,111670.0,111660.0,0.00019125]
[1747934846044,0.33905435,111670.0,111660.0,0.63379125]
[1747934846234,0.33905435,111670.0,111660.0,0.36543125]
[1747934846235,0.36404462,111670.0,111660.0,0.36543125]
[1747934846437,0.33905435,111670.0,111660.0,0.63379125]
[1747934847701,0.33905435,111670.0,111660.0,0.00019125]
[1747934847929,0.33905435,111670.0,111660.0,0.63379125]
[1747934851217,0.33905435,111670.0,111660.0,0.63291125]
[1747934854503,0.22520879,111670.0,111660.0,0.81202642]
[1747934854644,0.19900879,111670.0,111660.0,1.15202642]
[1747934854847,0.190054,111670.0,111660.0,0.97291125]
[1747934855064,0.190054,111670.0,111660.0,1.15202642]
[1747934855272,0.190054,111670.0,111660.0,0.97291125]
[1747934856179,0.190054,111670.0,111660.0,0.34019125]
[1747934856363,0.190054,111670.0,111660.0,0.97295125]
[1747934857027,0.190054,111670.0,111660.0,1.15206642]
[1747934857284,0.190054,111670.0,111660.0,0.97295125]
[1747934860890,0.239754,111670.0,111660.0,0.97291125]
[1747934864079,0.190054,111670.0,111660.0,0.97291125]
[1747934865788,0.190054,111670.0,111660.0,0.63291125]
[1747934867795,0.214854,111670.0,111660.0,0.63291125]
[1747934867996,0.214854,111670.0,111660.0,0.36455125]
[1747934868242,0.240354,111670.0,111660.0,0.63291125]
[1747934870136,0.23993292,111670.0,111660.0,0.63291125]
[1747934871458,0.01791206,111650.0,111640.0,0.19461458]
[1747934871755,0.00895591,111650.0,111640.0,2.9504645]
[1747934871965,0.0179119,111650.0,111640.0,2.9753645]
[1747934872128,0.02686813,111650.0,111640.0,2.9753645]
[1747934872331,0.03582453,111650.0,111640.0,2.9753645]
[1747934872533,0.02686813,111650.0,111640.0,2.9763645]
[1747934872738,0.03582445,111650.0,111640.0,3.2447245]
[1747934873095,0.03582445,111650.0,111640.0,3.2198245]
[1747934873489,0.02686813,111650.0,111640.0,3.5598245]
[1747934873693,0.0179119,111650.0,111640.0,3.5598245]
[1747934873860,0.02686813,111650.0,111640.0,3.5845245]
[1747934874043,0.19702619,111660.0,111650.0,0.19704376]
[1747934874273,0.02686621,111660.0,111650.0,2.50743975]
[1747934874459,0.20598138,111660.0,111650.0,2.49848376]
[1747934874874,0.21493705,111660.0,111650.0,2.49848376]
[1747934875100,0.21493705,111660.0,111650.0,3.13120376]
[1747934875311,0.21593705,111660.0,111650.0,3.14015983]
[1747934875767,0.21593705,111660.0,111650.0,3.13120376]